bitfinex/quotes_SOLUSD_20250313
["timestamp","ask_amount","ask_price","bid_price","bid_amount"]
[1741829633416,0.03,125.98,125.94,28.27483573]
[1741829633831,0.03,125.98,125.95,22.15433573]
[1741829634829,0.03,125.98,125.97,22.15433573]
[1741829635341,0.03,125.98,125.96,22.15433573]
[1741829636741,0.03,125.98,125.97,22.15433573]
[1741829636951,0.03,125.98,125.96,22.15433573]
[1741829638740,0.03,125.98,125.97,22.15433573]
[1741829638939,0.03,125.98,125.97,22.2964973]
[1741829639849,0.03,125.98,125.97,22.43865887]
[1741829640027,0.03,125.98,125.97,47.61860773]
[1741829640439,0.03,125.98,125.97,55.55690773]
[1741829642433,0.03,126.02,126.0,0.14216157]
[1741829642630,0.03,126.02,126.01,22.2964973]
[1741829643946,0.03,126.02,126.01,22.15433573]
[1741829646354,0.03,126.02,125.99,22.15433573]
[1741829648360,22.18433573,126.02,125.97,6.5303]
[1741829648528,22.15433573,126.01,125.97,6.5303]
[1741829648734,22.18433573,126.02,125.97,28.68463573]
[1741829649751,0.03,126.02,126.0,22.15433573]
[1741829649961,0.03,126.02,126.01,22.15433573]
[1741829650150,0.03,126.02,126.0,22.15433573]
[1741829650354,0.03,126.02,125.98,22.15433573]
[1741829650548,0.03,126.02,125.99,22.15433573]
[1741829650751,0.03,126.02,126.0,22.15433573]
[1741829651253,0.03,126.02,125.99,22.15433573]
[1741829651761,0.03,126.02,126.0,22.15433573]
[1741829653251,0.03,126.02,125.99,22.15433573]
[1741829653763,0.03,126.02,125.98,22.2964973]
[1741829655140,0.03,126.02,125.99,22.15433573]
[1741829658970,0.03,126.02,125.97,6.5933]
[1741829659142,0.03,126.02,125.97,0.34732314]
[1741829659350,0.03,126.02,125.99,22.15433573]
[1741829660064,0.03,126.02,125.98,22.15433573]
[1741829660663,0.03,126.02,125.97,22.21733573]
[1741829661167,0.03,126.02,125.97,0.063]
[1741829661168,22.15433573,126.01,125.97,0.063]
[1741829661463,22.18433573,126.02,125.97,0.063]
[1741829661651,22.18433573,126.02,125.97,22.21733573]
[1741829662368,0.03,126.02,125.99,22.15433573]
[1741829662665,0.03,126.02,125.98,22.2964973]
[1741829664284,0.03,126.02,125.98,14.32602087]
[1741829664566,0.03,126.02,125.99,14.1838593]
[1741829669344,0.03,126.02,126.01,14.1838593]
[1741829669768,0.03,126.02,126.01,22.40398244]
[1741829669963,0.03,126.02,126.01,42.5831313]
[1741829671576,0.03,126.02,126.01,49.04711329]
[1741829672355,0.03,126.02,126.01,57.00345509]
[1741829672576,0.03,126.02,126.01,60.92710247]
[1741829673371,0.03,126.02,126.01,54.46312048]
[1741829673553,0.03,126.02,126.01,42.6036731]
[1741829673751,0.03,126.02,126.0,0.14216157]
[1741829674067,0.03,126.02,126.01,22.1402011]
[1741829674470,0.03,126.02,126.0,22.1402011]
[1741829675170,0.03,126.02,126.01,22.1402011]
[1741829675678,0.03,126.02,126.0,22.28236267]
[1741829676857,0.03,126.02,126.0,0.14216157]
[1741829677258,0.03,126.02,126.01,22.1402011]
[1741829678163,0.03,126.02,126.01,22.42452424]
[1741829678359,0.03,126.02,126.01,0.14216157]
[1741829678682,0.03,126.02,126.01,22.1402011]
[1741829678885,0.03,126.02,126.0,22.28236267]
[1741829680668,0.03,126.02,125.98,7.56732314]
[1741829680875,0.03,126.02,126.0,22.1402011]
[1741829681069,0.03,126.02,126.01,22.1402011]
[1741829681277,0.03,126.02,126.01,22.42452424]
[1741829681481,0.03,126.02,126.01,22.28236267]
[1741829682575,0.03,126.02,126.0,22.1402011]
[1741829682781,0.03,126.02,126.01,22.1402011]
[1741829684782,0.03,126.02,126.01,22.28236267]
[1741829684984,0.03,126.02,126.01,22.1402011]
[1741829686984,0.03,126.02,126.01,22.28236267]
[1741829687372,0.03,126.02,126.01,22.1402011]
[1741829689097,0.03,126.02,126.01,30.21816267]
[1741829689478,0.03,126.02,126.01,22.28236267]
[1741829689870,0.03,126.02,126.01,30.36032424]
[1741829690065,0.03,126.02,126.01,55.1837731]
[1741829694091,0.03,126.02,126.01,28.59832424]
[1741829694285,0.03,126.02,126.01,20.63180102]
[1741829696909,0.03,126.02,126.01,28.56760102]
[1741829697990,0.03,126.02,126.01,47.21724988]
[1741829701399,0.03,126.02,126.01,20.63180102]
[1741829702212,0.03,126.02,125.99,0.14216157]
[1741829702414,0.03,126.02,126.01,14.17367788]
[1741829702605,0.03,126.02,126.01,14.31583945]
[1741829703380,0.03,126.02,126.01,22.39380102]
[1741829703794,0.03,126.02,126.01,41.04344988]
[1741829705109,0.03,126.02,126.01,14.31583945]
[1741829706402,0.03,126.02,126.01,20.14216157]
[1741829706604,0.03,126.02,126.01,34.31583945]
[1741829707188,0.03,126.02,126.01,61.04344988]
[1741829708729,0.03,126.02,126.01,34.17367788]
[1741829708919,0.03,126.02,126.01,34.31583945]
[1741829709089,0.03,126.02,126.01,14.17367788]
[1741829710818,0.03,126.02,126.0,14.17367788]
[1741829712198,0.03,126.02,126.01,14.17367788]
[1741829712905,0.03,126.02,126.01,22.25163945]
[1741829713106,0.03,126.07,126.05,0.14216157]
[1741829713307,0.03,126.07,126.06,14.17367788]
[1741829713507,0.03,126.07,126.06,14.31583945]
[1741829714090,0.03,126.07,126.06,71.01055097]
[1741829714297,0.03,126.07,126.06,71.15271254]
[1741829714492,0.03,126.07,126.06,89.8023614]
[1741829714715,0.03,126.11,126.1,0.14216157]
[1741829714911,0.03,126.11,126.1,21.53583945]
[1741829715103,0.03,126.11,126.09,14.17367788]
[1741829715301,0.03,126.11,126.07,7.36216157]
[1741829715506,0.03,126.11,126.08,14.17367788]
[1741829716201,0.03,126.11,126.1,14.17367788]
[1741829716697,0.03,126.11,126.09,14.17367788]
[1741829716907,0.03,126.11,126.08,14.17367788]
[1741829717114,0.03,126.11,126.09,14.17367788]
[1741829717496,0.03,126.11,126.1,14.17367788]
[1741829719026,0.03,126.11,126.1,14.45800102]
[1741829720316,0.03,126.11,126.1,14.31583945]
[1741829720524,0.03,126.11,126.1,14.17367788]
[1741829720914,0.03,126.11,126.09,21.37367788]
[1741829721426,0.03,126.11,126.09,14.17367788]
[1741829723134,14.20367788,126.11,126.06,14.17367788]
[1741829723430,14.20367788,126.11,126.05,14.31583945]
[1741829724128,14.17367788,126.08,126.03,14.17367788]
[1741829724334,14.17367788,126.07,126.02,14.17367788]
[1741829724522,14.17367788,126.06,126.01,21.37367788]
[1741829724700,14.17367788,126.06,126.01,7.2]
[1741829725127,7.9333,126.05,126.01,21.37367788]
[1741829726099,7.9333,126.05,126.02,14.17367788]
[1741829726300,7.9333,126.05,126.02,22.1517941]
[1741829726624,7.9333,126.05,126.01,29.3517941]
[1741829726937,30.0850941,126.05,125.99,6.4384]
[1741829727236,7.9346,126.03,125.99,22.29395567]
[1741829727406,7.9346,126.03,125.98,0.063]
[1741829727407,22.1517941,126.01,125.98,0.063]
[1741829729635,30.0877941,126.01,125.98,0.063]
[1741829730241,22.1517941,126.0,125.98,0.063]
[1741829730480,22.1517941,125.99,125.98,0.063]
[1741829730621,54.95630453,125.99,125.97,0.063]
[1741829730935,40.80144296,125.98,125.97,0.063]
[1741829731144,40.80144296,125.98,125.93,0.063]
[1741829731312,22.1517941,125.96,125.93,0.063]
[1741829732513,22.1517941,125.95,125.93,0.063]
[1741829732918,27.7842,125.97,125.93,0.063]
[1741829732919,30.0900941,125.97,125.93,0.063]
[1741829736036,30.9682941,125.99,125.93,22.2147941]
[1741829736252,1.6165,125.99,125.94,22.1517941]
[1741829736454,23.7682941,125.99,125.94,22.1517941]
[1741829737050,31.7054941,125.99,125.94,22.1517941]
[1741829737233,31.7054941,125.99,125.93,22.35695567]
[1741829737559,22.1517941,125.98,125.93,22.35695567]
[1741829738460,22.1517941,125.97,125.93,0.063]
[1741829738639,22.1517941,125.96,125.93,0.063]
[1741829738836,22.1517941,125.95,125.93,0.063]
[1741829739036,22.1517941,125.94,125.93,0.063]
[1741829739257,30.0919941,125.94,125.93,0.063]
[1741829739755,7.9402,125.94,125.93,0.063]
[1741829739949,30.0919941,125.94,125.93,0.063]
[1741829740745,48.74164296,125.94,125.93,0.0001]
[1741829745343,7.9402,125.94,125.93,0.0001]
[1741829745540,30.0919941,125.94,125.93,0.0001]
[1741829746057,48.74164296,125.94,125.93,0.0001]
[1741829746246,48.88380453,125.94,125.93,0.0001]
[1741829746432,71.03559863,125.94,125.93,0.0001]
[1741829747347,48.88380453,125.94,125.93,0.0001]
[1741829747567,48.74164296,125.94,125.93,0.0001]
[1741829747956,30.0919941,125.94,125.93,0.0001]
[1741829748159,7.9402,125.94,125.93,0.0001]
[1741829748472,30.0919941,125.94,125.93,0.0001]
[1741829750372,7.9402,125.94,125.93,0.0001]
[1741829750756,30.0919941,125.94,125.93,0.0001]
[1741829751478,7.9402,125.94,125.93,0.0001]
[1741829751767,30.1219941,125.94,125.93,0.0001]
[1741829754279,7.9702,125.94,125.93,0.0001]
[1741829754443,30.1219941,125.94,125.93,0.0001]
[1741829756376,22.17659538,125.94,125.93,0.0001]
[1741829757069,40.96840581,125.94,125.93,0.0001]
[1741829757277,97.79398733,125.94,125.93,0.0001]
[1741829758339,71.0325116,125.94,125.93,0.0001]
[1741829758542,48.9683418,125.94,125.93,0.0001]
[1741829759174,96.77953474,125.94,125.93,0.0001]
[1741829759472,96.77953474,125.94,125.87,0.063]
[1741829759473,20.0,125.91,125.87,0.063]
[1741829759768,40.85598023,125.9,125.87,0.063]
[1741829759970,22.20633137,125.9,125.87,0.063]
[1741829761148,0.14216157,125.93,125.88,22.20633137]
[1741829761149,30.14723137,125.93,125.88,22.20633137]
[1741829761461,7.9409,125.93,125.88,22.20633137]
[1741829761772,7.9409,125.93,125.89,22.20633137]
[1741829761970,7.9409,125.93,125.89,28.29823137]
[1741829763580,0.03,125.94,125.91,23.71003137]
[1741829763745,0.03,125.94,125.93,22.20633137]
[1741829765046,0.03,125.94,125.91,1.5037]
[1741829765047,0.03,125.94,125.91,23.71003137]
[1741829765971,0.03,125.94,125.92,22.20633137]
[1741829766468,0.03,125.94,125.93,22.20633137]
[1741829768783,0.03,125.94,125.89,6.0919]
[1741829769070,0.03,125.94,125.91,22.20633137]
[1741829769949,0.03,125.94,125.93,22.20633137]
[1741829770152,0.03,125.94,125.92,22.20633137]
[1741829770349,0.03,125.94,125.91,22.20633137]
[1741829770769,0.03,125.94,125.89,35.66039294]
[1741829770975,0.03,125.94,125.9,22.20633137]
[1741829771153,0.03,125.94,125.91,22.20633137]
[1741829771559,0.03,125.94,125.9,0.14216157]
[1741829771777,0.03,125.94,125.91,22.20633137]
[1741829772976,0.03,125.94,125.91,0.14216157]
[1741829773275,22.23633137,125.94,125.89,35.51823137]
[1741829773452,22.20633137,125.92,125.88,1.5459]
[1741829773650,22.20633137,125.9,125.87,0.063]
[1741829773855,7.9434,125.89,125.87,0.063]
[1741829774777,30.14793137,125.92,125.87,0.063]
[1741829774959,7.9416,125.92,125.88,22.20633137]
[1741829775162,30.14793137,125.92,125.87,22.41149294]
[1741829775363,22.20633137,125.9,125.87,0.063]
[1741829775675,22.20633137,125.89,125.87,0.063]
[1741829775859,7.9436,125.89,125.87,0.063]
[1741829777181,22.20633137,125.88,125.87,0.063]
[1741829777759,19.8571,125.9,125.87,0.063]
[1741829777961,22.20633137,125.88,125.87,0.063]
[1741829778881,7.9434,125.89,125.87,0.063]
[1741829779069,30.14933137,125.9,125.87,0.063]
[1741829779260,7.943,125.9,125.87,0.063]
[1741829779461,30.14933137,125.9,125.87,0.063]
[1741829780485,30.14853137,125.91,125.87,0.063]
[1741829781677,7.9422,125.91,125.87,0.063]
[1741829782585,30.14853137,125.91,125.87,0.063]
[1741829782882,22.20633137,125.9,125.87,0.063]
[1741829783380,22.20633137,125.89,125.87,0.063]
[1741829784262,7.944,125.88,125.87,0.063]
[1741829787478,30.15033137,125.88,125.87,0.063]
[1741829788589,7.944,125.88,125.87,0.063]
[1741829789085,30.14993137,125.89,125.87,0.063]
[1741829789281,7.9436,125.89,125.87,0.063]
[1741829789785,30.14933137,125.9,125.87,0.063]
[1741829789995,7.943,125.9,125.87,0.063]
[1741829790286,30.14933137,125.9,125.87,0.063]
[1741829790702,22.20633137,125.89,125.87,0.063]
[1741829791181,22.20633137,125.88,125.87,0.063]
[1741829791781,22.20633137,125.89,125.87,0.063]
[1741829792677,7.944,125.88,125.87,0.063]
[1741829792878,22.20633137,125.9,125.87,0.063]
[1741829794383,7.9434,125.89,125.87,0.063]
[1741829795579,30.14973137,125.89,125.87,0.063]
[1741829802498,22.16047435,125.89,125.87,0.063]
[1741829803098,14.21707435,125.88,125.87,0.063]
[1741829804574,7.944,125.88,125.87,0.063]
[1741829804799,7.9428,125.9,125.87,0.063]
[1741829805077,22.15987435,125.9,125.87,0.063]
[1741829807080,7.9415,125.92,125.87,6.2829]
[1741829807285,14.21707435,125.91,125.87,7.9177]
[1741829808182,14.21707435,125.92,125.87,22.13477435]
[1741829809196,14.21707435,125.92,125.87,30.07937435]
[1741829810196,22.15897435,125.92,125.87,30.07937435]
[1741829810396,14.21707435,125.91,125.87,7.9177]
[1741829810613,14.21707435,125.9,125.87,7.9177]
[1741829810912,7.9419,125.92,125.87,7.9177]
[1741829810913,14.21707435,125.89,125.87,7.9177]
[1741829811390,14.21707435,125.9,125.87,7.9177]
[1741829812510,7.9434,125.89,125.87,7.9177]
[1741829813039,22.15997435,125.9,125.87,7.9177]
[1741829814000,14.21707435,125.89,125.87,7.9177]
[1741829814198,14.21707435,125.88,125.87,0.063]
[1741829814819,22.16107435,125.88,125.87,0.063]
[1741829816126,74.88789756,125.88,125.85,0.063]
[1741829816324,40.87893966,125.86,125.85,0.063]
[1741829816698,40.87893966,125.86,125.84,0.063]
[1741829816899,30.1751908,125.85,125.84,0.063]
[1741829819120,7.9459,125.85,125.84,0.063]
[1741829819422,30.1747908,125.86,125.84,0.063]
[1741829819716,22.2292908,125.85,125.84,0.063]
[1741829820317,30.1747908,125.86,125.84,0.063]
[1741829820828,22.2292908,125.85,125.84,0.063]
[1741829821189,30.1747908,125.86,125.84,0.063]
[1741829822716,7.944,125.88,125.84,22.2922908]
[1741829823526,22.2292908,125.87,125.84,0.063]
[1741829824691,7.9453,125.86,125.84,0.063]
[1741829826220,30.1745908,125.86,125.84,0.063]
[1741829827420,22.2292908,125.85,125.84,0.063]
[1741829828599,7.9453,125.86,125.84,0.063]
[1741829828804,22.2292908,125.86,125.84,0.063]
[1741829829001,30.1720908,125.9,125.85,22.2292908]
[1741829829196,22.2292908,125.88,125.85,1.506]
[1741829830014,22.2292908,125.87,125.85,1.506]
[1741829830529,22.2292908,125.86,125.84,0.063]
[1741829830826,30.1751908,125.85,125.84,0.063]
[1741829831005,7.9459,125.85,125.84,0.063]
[1741829831213,30.1740908,125.87,125.84,0.063]
[1741829831522,30.1734908,125.88,125.84,0.063]
[1741829831729,30.1734908,125.88,125.84,22.2922908]
[1741829831730,7.9442,125.88,125.84,22.2922908]
[1741829831927,7.9442,125.88,125.84,0.063]
[1741829832425,7.9442,125.88,125.84,22.2922908]
[1741829832932,30.1727908,125.89,125.84,30.2387908]
[1741829833138,7.9435,125.89,125.84,30.2387908]
[1741829833434,7.9435,125.89,125.84,22.2922908]
[1741829833624,30.1727908,125.89,125.85,6.2162]
[1741829834428,22.2292908,125.86,125.84,0.063]
[1741829834733,22.2292908,125.85,125.84,0.063]
[1741829835022,30.1751908,125.85,125.84,0.063]
[1741829835411,48.82483966,125.85,125.84,0.063]
[1741829835615,68.68973966,125.85,125.81,6.2792]
[1741829835812,22.2292908,125.83,125.81,0.063]
[1741829836217,22.2292908,125.84,125.81,0.063]
[1741829836533,22.2292908,125.83,125.81,0.063]
[1741829837313,7.9478,125.82,125.81,0.063]
[1741829842138,30.1770908,125.82,125.81,0.063]
[1741829844620,48.82673966,125.82,125.81,0.063]
[1741829844937,48.82673966,125.82,125.8,0.063]
[1741829845142,22.2292908,125.81,125.8,0.063]
[1741829845317,30.1770908,125.82,125.8,0.063]
[1741829846739,30.1770908,125.82,125.81,0.063]
[1741829847541,7.9478,125.82,125.8,0.063]
[1741829848212,27.1149,125.85,125.8,0.063]
[1741829848418,7.9465,125.84,125.8,6.6392]
[1741829848624,7.9465,125.84,125.8,28.8684908]
[1741829849339,7.9465,125.84,125.81,22.2292908]
[1741829849544,30.2052908,125.85,125.8,6.6392]
[1741829849742,7.976,125.85,125.81,23.8268908]
[1741829850632,22.2292908,125.83,125.8,6.6392]
[1741829850950,22.2292908,125.82,125.8,0.063]
[1741829852047,22.2292908,125.83,125.8,0.063]
[1741829852949,7.9478,125.82,125.8,0.063]
[1741829853736,30.1770908,125.82,125.8,0.063]
[1741829854223,7.9478,125.82,125.8,0.063]
[1741829854423,7.9473,125.83,125.8,0.063]
[1741829854635,0.03,125.85,125.8,22.2922908]
[1741829854851,30.2057908,125.85,125.8,22.2922908]
[1741829855641,30.2057908,125.85,125.8,0.063]
[1741829855845,22.2292908,125.84,125.8,0.063]
[1741829856838,22.2292908,125.82,125.8,0.063]
[1741829857042,22.2292908,125.81,125.8,0.063]
[1741829857449,22.2292908,125.82,125.8,0.063]
[1741829857626,50.0450908,125.83,125.8,0.063]
[1741829858626,22.2292908,125.82,125.8,0.063]
[1741829858954,7.9484,125.81,125.8,0.063]
[1741829863253,22.2292908,125.83,125.8,0.063]
[1741829863554,7.9472,125.83,125.8,0.063]
[1741829868353,22.20591859,125.84,125.8,0.063]
[1741829869758,0.03,125.84,125.8,0.063]
[1741829869937,22.20621859,125.84,125.8,0.063]
[1741829871339,7.9769,125.84,125.8,14.29231859]
[1741829876544,22.20621859,125.84,125.8,0.063]
[1741829877363,7.9769,125.84,125.8,0.063]
[1741829878164,7.9769,125.84,125.8,14.29231859]
[1741829879767,7.9769,125.84,125.8,0.063]
[1741829880866,22.20621859,125.84,125.8,0.063]
[1741829881367,7.9769,125.84,125.8,0.063]
[1741829882644,22.20621859,125.84,125.8,0.063]
[1741829883170,42.07261859,125.84,125.8,0.063]
[1741829883472,14.22931859,125.82,125.8,0.063]
[1741829884350,14.22931859,125.81,125.8,0.063]
[1741829884755,22.17771859,125.81,125.8,0.063]
[1741829885578,43.11169059,125.81,125.8,0.0001]
[1741829885773,0.28432314,125.79,125.74,0.03]
[1741829886079,14.22931859,125.75,125.74,0.03]
[1741829886372,14.22931859,125.75,125.74,0.0001]
[1741829886781,22.18151859,125.75,125.74,0.0001]
[1741829887075,29.38151859,125.75,125.74,0.0001]
[1741829888976,21.42931859,125.75,125.74,0.0001]
[1741829889151,29.38151859,125.75,125.74,0.0001]
[1741829890550,29.66584173,125.75,125.74,0.0001]
[1741829891162,21.42931859,125.75,125.74,0.0001]
[1741829891343,18.933972,125.74,125.71,0.063]
[1741829891548,34.22931859,125.72,125.71,0.063]
[1741829892751,14.22931859,125.72,125.71,0.063]
[1741829893474,22.18341859,125.72,125.71,0.063]
[1741829897775,20.28432314,125.7,125.69,0.063]
[1741829897980,0.28432314,125.69,125.68,0.0001]
[1741829898154,21.73364173,125.69,125.68,0.0001]
[1741829899061,20.28432314,125.66,125.63,0.063]
[1741829899265,71.14659295,125.64,125.63,0.063]
[1741829899574,14.22931859,125.64,125.63,0.063]
[1741829900379,22.30462788,125.64,125.63,0.0001]
[1741829900561,22.58895102,125.64,125.63,0.0001]
[1741829901056,30.54815102,125.64,125.63,0.0001]
[1741829901473,49.19779988,125.64,125.63,0.0001]
[1741829901881,71.50242776,125.64,125.63,0.0001]
[1741829902776,30.26382788,125.64,125.63,0.0001]
[1741829905589,52.8527789,125.64,125.63,0.0001]
[1741829906156,71.50242776,125.64,125.62,0.0001]
[1741829906380,22.58895102,125.63,125.62,0.0001]
[1741829906886,49.19839988,125.63,125.61,0.0001]
[1741829907090,40.95427674,125.62,125.61,0.0001]
[1741829908178,41.23859988,125.62,125.61,0.0001]
[1741829908960,49.19909988,125.62,125.61,0.0001]
[1741829909262,30.54945102,125.62,125.61,0.0001]
[1741829910694,37.76945102,125.62,125.61,0.0001]
[1741829911792,30.26512788,125.62,125.61,0.0001]
[1741829911992,22.30462788,125.62,125.61,0.0001]
[1741829912669,30.26512788,125.62,125.61,0.0001]
[1741829913095,22.30462788,125.62,125.61,0.0001]
[1741829913793,30.26512788,125.62,125.61,0.0001]
[1741829916076,30.54945102,125.62,125.61,0.0001]
[1741829916275,20.0,125.59,125.55,1.6109]
[1741829916473,22.30462788,125.56,125.55,1.6109]
[1741829917396,22.30462788,125.56,125.53,6.2816]
[1741829917600,22.30462788,125.57,125.53,6.2816]
[1741829917892,22.30462788,125.58,125.53,6.2816]
[1741829918197,37.48722788,125.59,125.54,22.30462788]
[1741829918407,30.26722788,125.59,125.54,22.30462788]
[1741829919991,22.30462788,125.6,125.54,22.30462788]
[1741829920194,30.26632788,125.6,125.54,30.27002788]
[1741829920997,22.30462788,125.59,125.54,30.27002788]
[1741829921192,22.30462788,125.59,125.54,30.30002788]
[1741829921500,22.30462788,125.6,125.55,1.6503]
[1741829921993,22.30462788,125.59,125.55,1.6503]
[1741829922184,22.30462788,125.58,125.55,1.6503]
[1741829923195,22.30462788,125.57,125.55,1.6503]
[1741829923499,7.9643,125.56,125.55,1.6503]
[1741829924897,22.30462788,125.59,125.55,1.6503]
[1741829925075,30.26722788,125.59,125.55,1.6503]
[1741829925495,30.26722788,125.59,125.54,0.03]
[1741829925496,22.30462788,125.57,125.54,0.03]
[1741829925689,22.30462788,125.58,125.54,0.03]
[1741829925905,22.30462788,125.57,125.54,0.03]
[1741829926796,22.30462788,125.58,125.54,0.03]
[1741829928111,30.26812788,125.58,125.54,0.03]
[1741829929417,22.30462788,125.57,125.54,0.03]
[1741829930207,22.30462788,125.56,125.54,0.03]
[1741829930693,22.30462788,125.57,125.54,0.03]
[1741829931407,30.26852788,125.57,125.54,0.03]
[1741829933183,7.9631,125.58,125.54,0.03]
[1741829933714,30.26772788,125.58,125.54,0.03]
[1741829934806,22.30462788,125.58,125.54,0.03]
[1741829935484,7.9625,125.59,125.54,18.82181043]
[1741829935684,30.26712788,125.59,125.54,22.33462788]
[1741829936110,22.30462788,125.58,125.54,0.03]
[1741829937104,7.9636,125.57,125.54,0.03]
[1741829940711,30.26822788,125.57,125.54,0.03]
[1741829941089,22.30462788,125.56,125.54,0.03]
[1741829942009,7.9649,125.55,125.54,0.03]
[1741829942414,22.25850124,125.55,125.54,0.03]
[1741829942616,7.9649,125.55,125.54,0.03]
[1741829942990,22.25850124,125.55,125.54,0.03]
[1741829944295,30.30535313,125.55,125.54,0.03]
[1741829947820,37.52535313,125.55,125.54,0.03]
[1741829949819,56.45932513,125.55,125.54,0.0001]
[1741829951628,0.28432314,125.53,125.51,2.5342828]
[1741829951829,22.62477627,125.52,125.51,2.5342828]
[1741829952125,20.28432314,125.49,125.48,0.03]
[1741829952306,49.84477627,125.49,125.48,0.03]
[1741829952516,49.84477627,125.49,125.48,0.0001]
[1741829952906,57.81347627,125.49,125.48,0.0001]
[1741829953508,76.46312513,125.49,125.48,0.0001]
[1741829954217,27.9687,125.49,125.48,0.0001]
[1741829954423,22.34045313,125.49,125.48,0.0001]
[1741829955131,22.34045313,125.5,125.48,0.0001]
[1741829955331,37.52795313,125.51,125.48,0.0001]
[1741829955519,22.34045313,125.5,125.48,0.0001]
[1741829956708,22.34045313,125.49,125.48,0.0001]
[1741829956913,30.30915313,125.49,125.48,0.0001]
[1741829957324,30.59347627,125.49,125.48,0.0001]
[1741829957722,30.30915313,125.49,125.48,0.0001]
[1741829963916,22.34045313,125.49,125.48,0.0001]
[1741829964115,30.30915313,125.49,125.48,0.0001]
[1741829965039,7.22,125.51,125.48,0.0001]
[1741829965040,30.30865313,125.5,125.48,0.0001]
[1741829966443,7.9674,125.51,125.48,0.0001]
[1741829966740,22.34045313,125.5,125.48,0.0001]
[1741829967124,22.34045313,125.49,125.48,0.0001]
[1741829968749,30.30915313,125.49,125.48,0.0001]
[1741829969731,7.9687,125.49,125.48,0.0001]
[1741829970127,30.30915313,125.49,125.48,0.0001]
[1741829972145,7.9687,125.49,125.48,0.0001]
[1741829973844,8.0313,125.5,125.48,0.0001]
[1741829974222,22.33726662,125.5,125.48,0.0001]
[1741829975342,8.0313,125.5,125.48,0.0001]
[1741829975721,0.063,125.5,125.48,0.0001]
[1741829975924,0.063,125.5,125.49,40.95812819]
[1741829976352,0.063,125.5,125.49,59.60777705]
[1741829976944,0.063,125.5,125.49,69.15927705]
[1741829977336,0.063,125.5,125.49,69.30143862]
[1741829977545,22.26976662,125.57,125.5,18.79181043]
[1741829977858,7.9638,125.57,125.53,6.3514]
[1741829978229,30.29168229,125.57,125.53,6.3514]
[1741829978620,22.32788229,125.56,125.53,6.3514]
[1741829978853,7.9655,125.54,125.53,6.3514]
[1741829980444,7.9649,125.55,125.53,6.3514]
[1741829980646,22.32788229,125.57,125.53,6.3514]
[1741829980844,7.9643,125.56,125.53,6.3514]
[1741829981036,30.29218229,125.56,125.53,6.3514]
[1741829982826,7.9643,125.56,125.53,6.3514]
[1741829984246,30.35458229,125.57,125.53,6.3514]
[1741829985676,8.0267,125.57,125.53,6.3514]
[1741829986157,30.35458229,125.57,125.53,6.3514]
[1741829988234,22.32788229,125.55,125.53,6.3514]
[1741829989446,27.9359,125.57,125.5,6.5367]
[1741829989447,22.32788229,125.54,125.5,6.5367]
[1741829991361,7.9662,125.53,125.5,6.5367]
[1741829993668,7.9662,125.53,125.5,6.5667]
[1741829994758,30.29408229,125.53,125.5,6.5667]
[1741829995139,7.9662,125.53,125.5,6.5667]
[1741829997972,30.29408229,125.53,125.5,6.5667]
[1741829998256,22.2661201,125.53,125.5,6.5667]
[1741829998443,14.2999201,125.52,125.5,0.03]
[1741829998646,14.2999201,125.51,125.48,0.0001]
[1741829998865,14.2999201,125.49,125.48,0.0001]
[1741829999971,22.2686201,125.49,125.48,0.0001]
[1741830000270,30.33122113,125.49,125.48,0.0001]
[1741830001767,7.9687,125.49,125.48,0.0001]
[1741830002150,22.36252113,125.51,125.48,0.0001]
[1741830002362,30.33052113,125.51,125.48,0.0001]
[1741830002770,7.968,125.51,125.49,6.0436]